[Event "Late-Titled-Tuesday-Blitz-December-26-2023"]
[Site "Chess.com"]
[Date "2023.12.26"]
[Round "1"]
[White "AradNazari"]
[Black "thesupera12"]
[Result "1-0"]
[WhiteElo "2713"]
[BlackElo "2405"]
[TimeControl "180+1"]
[EndTime "14:08:43 PST"]
[Termination "AradNazari won by resignation"]

1. e4 {[%clk 0:02:42.9]} 1... d5 {[%clk 0:02:59.2]} 2. exd5 {[%clk 0:00:58.4]}
2... Qxd5 {[%clk 0:02:58.7]} 3. Nc3 {[%clk 0:00:58.1]} 3... Qa5 {[%clk
0:02:58.8]} 4. d4 {[%clk 0:00:58.7]} 4... Nf6 {[%clk 0:02:59.1]} 5. Bc4 {[%clk
0:00:59.2]} 5... Bg4 {[%clk 0:02:59.4]} 6. Ne2 {[%clk 0:01:00.1]} 6... Nc6
{[%clk 0:02:59.1]} 7. f3 {[%clk 0:00:52.6]} 7... Bh5 {[%clk 0:02:58.7]} 8. Bb3
{[%clk 0:00:52.8]} 8... O-O-O {[%clk 0:02:58.3]} 9. Be3 {[%clk 0:00:53.5]} 9...
e5 {[%clk 0:02:56.7]} 10. d5 {[%clk 0:00:43.8]} 10... Nb4 {[%clk 0:02:25.1]} 11.
Bd2 {[%clk 0:00:35.6]} 11... Qc5 {[%clk 0:02:18]} 12. Ne4 {[%clk 0:00:30.9]}
12... Qb6 {[%clk 0:01:51]} 13. N2c3 {[%clk 0:00:18.4]} 13... Nbxd5 {[%clk
0:01:46.8]} 14. Nxd5 {[%clk 0:00:13.2]} 14... Nxd5 {[%clk 0:01:47.7]} 15. Qe2
{[%clk 0:00:13.6]} 15... Bc5 {[%clk 0:01:25.6]} 16. Nxc5 {[%clk 0:00:11.1]}
16... Qxc5 {[%clk 0:01:26.5]} 17. O-O-O {[%clk 0:00:11.3]} 17... Rhe8 {[%clk
0:01:21.5]} 18. Rhe1 {[%clk 0:00:11.2]} 18... e4 {[%clk 0:01:13.4]} 19. g4
{[%clk 0:00:06.3]} 19... Bg6 {[%clk 0:01:06]} 20. fxe4 {[%clk 0:00:05.8]} 20...
Rxe4 {[%clk 0:01:02.3]} 21. Qf3 {[%clk 0:00:06.5]} 21... Rxe1 {[%clk 0:00:56.4]}
22. Rxe1 {[%clk 0:00:07.4]} 22... Nb4 {[%clk 0:00:52.9]} 23. Bc3 {[%clk
0:00:03.9]} 23... f6 {[%clk 0:00:48.2]} 24. a3 {[%clk 0:00:03.9]} 24... Nd5
{[%clk 0:00:47.1]} 25. Bd2 {[%clk 0:00:04.6]} 25... a6 {[%clk 0:00:40.2]} 26.
Rd1 {[%clk 0:00:05]} 26... Nb6 {[%clk 0:00:39.7]} 27. h4 {[%clk 0:00:02.5]}
27... h5 {[%clk 0:00:38.4]} 28. Re1 {[%clk 0:00:01.5]} 28... Qd6 {[%clk
0:00:33.8]} 29. Be3 {[%clk 0:00:01.6]} 29... Nd5 {[%clk 0:00:32.9]} 30. Bxd5
{[%clk 0:00:01.4]} 30... Qxd5 {[%clk 0:00:33.8]} 31. Qxd5 {[%clk 0:00:02.1]}
31... Rxd5 {[%clk 0:00:34.7]} 32. Rg1 {[%clk 0:00:02]} 32... Re5 {[%clk
0:00:33.3]} 33. Bd4 {[%clk 0:00:02]} 33... Re4 {[%clk 0:00:32.7]} 34. gxh5
{[%clk 0:00:02.6]} 34... Bxh5 {[%clk 0:00:31.1]} 35. Bf2 {[%clk 0:00:03.3]}
35... g6 {[%clk 0:00:30.5]} 36. Bg3 {[%clk 0:00:03.7]} 36... Re2 {[%clk
0:00:29.3]} 37. Re1 {[%clk 0:00:03.7]} 37... Rg2 {[%clk 0:00:28.8]} 38. Re3
{[%clk 0:00:03.9]} 38... f5 {[%clk 0:00:28.7]} 39. b4 {[%clk 0:00:04.1]} 39...
Rg1+ {[%clk 0:00:20.5]} 40. Kb2 {[%clk 0:00:04.2]} 40... Rf1 {[%clk 0:00:20.8]}
41. Rc3 {[%clk 0:00:04.4]} 41... f4 {[%clk 0:00:20.5]} 42. Bh2 {[%clk
0:00:04.7]} 42... c6 {[%clk 0:00:19.4]} 43. Rc4 {[%clk 0:00:03.6]} 43... f3
{[%clk 0:00:19.5]} 44. Rf4 {[%clk 0:00:04.3]} 44... f2 {[%clk 0:00:17.6]} 45.
Bg3 {[%clk 0:00:03.8]} 45... Kd7 {[%clk 0:00:07.2]} 46. Bxf2 {[%clk 0:00:04.3]}
46... Rh1 {[%clk 0:00:06.3]} 47. Rf8 {[%clk 0:00:04.6]} 47... Bg4 {[%clk
0:00:05.3]} 48. Kc3 {[%clk 0:00:03.5]} 48... Bf5 {[%clk 0:00:05.5]} 49. Kb2
{[%clk 0:00:03.4]} 49... Rh3 {[%clk 0:00:05.6]} 50. Bc5 {[%clk 0:00:02.9]} 50...
Rh2 {[%clk 0:00:05.8]} 51. Rf7+ {[%clk 0:00:03.3]} 51... Ke6 {[%clk 0:00:05.3]}
52. Rxb7 {[%clk 0:00:03.4]} 52... Rxc2+ {[%clk 0:00:06]} 53. Kb3 {[%clk
0:00:04.1]} 53... Rh2 {[%clk 0:00:05.7]} 54. Rb6 {[%clk 0:00:04.7]} 54... Rxh4
{[%clk 0:00:06.1]} 55. Rxc6+ {[%clk 0:00:04.9]} 55... Kd5 {[%clk 0:00:06]} 56.
Rd6+ {[%clk 0:00:05.6]} 56... Ke5 {[%clk 0:00:05.8]} 57. Rxa6 {[%clk 0:00:06.5]}
57... Rh3+ {[%clk 0:00:06.4]} 58. Kb2 {[%clk 0:00:05.6]} 58... Rh2+ {[%clk
0:00:06.3]} 59. Kb3 {[%clk 0:00:03.9]} 59... Rh1 {[%clk 0:00:06.7]} 60. Ra5
{[%clk 0:00:03.5]} 60... Ke4 {[%clk 0:00:06.4]} 61. b5 {[%clk 0:00:03.1]} 61...
Kd3 {[%clk 0:00:06.6]} 62. Bb4 {[%clk 0:00:03.2]} 62... Rb1+ {[%clk 0:00:07]}
63. Ka2 {[%clk 0:00:03.7]} 63... Kc4 {[%clk 0:00:06.5]} 64. b6 {[%clk
0:00:03.6]} 64... Rd1 {[%clk 0:00:03.7]} 65. Rc5+ {[%clk 0:00:04]} 65... Kd4
{[%clk 0:00:03.5]} 66. b7 {[%clk 0:00:04]} 66... Be6+ {[%clk 0:00:04]} 67. Kb2
{[%clk 0:00:04.1]} 67... Rg1 {[%clk 0:00:03.7]} 68. b8=Q {[%clk 0:00:04.5]}
68... Rg3 {[%clk 0:00:04.6]} 69. Qxg3 {[%clk 0:00:04.2]} 1-0

[Event "Late-Titled-Tuesday-Blitz-December-26-2023"]
[Site "Chess.com"]
[Date "2023.12.26"]
[Round "1"]
[White "Mikayel99"]
[Black "youngdinousaur"]
[Result "1/2-1/2"]
[WhiteElo "2577"]
[BlackElo "2288"]
[TimeControl "180+1"]
[EndTime "14:08:51 PST"]
[Termination "Game drawn - insufficient material"]

1. e4 {[%clk 0:03:00.3]} 1... c5 {[%clk 0:03:00.4]} 2. Nf3 {[%clk 0:03:00.6]}
2... e6 {[%clk 0:03:01]} 3. b3 {[%clk 0:02:58.6]} 3... Nf6 {[%clk 0:03:00.8]} 4.
e5 {[%clk 0:02:58.5]} 4... Nd5 {[%clk 0:03:00.4]} 5. Bb2 {[%clk 0:02:59.1]} 5...
Nc6 {[%clk 0:03:00]} 6. c4 {[%clk 0:02:59.3]} 6... Nc7 {[%clk 0:02:59]} 7. Nc3
{[%clk 0:02:54]} 7... d6 {[%clk 0:02:55.9]} 8. exd6 {[%clk 0:02:52.3]} 8... Qxd6
{[%clk 0:02:49.6]} 9. Nb5 {[%clk 0:02:48.3]} 9... Nxb5 {[%clk 0:02:46.1]} 10.
cxb5 {[%clk 0:02:49.2]} 10... Nd4 {[%clk 0:02:44.6]} 11. Nxd4 {[%clk 0:02:48.6]}
11... cxd4 {[%clk 0:02:45.5]} 12. Bd3 {[%clk 0:02:48.6]} 12... Be7 {[%clk
0:02:40.1]} 13. O-O {[%clk 0:02:46.5]} 13... O-O {[%clk 0:02:37.3]} 14. Re1
{[%clk 0:02:47]} 14... Bf6 {[%clk 0:02:34.6]} 15. a4 {[%clk 0:02:45.3]} 15...
Rd8 {[%clk 0:02:32.4]} 16. Ba3 {[%clk 0:02:44.1]} 16... Qd5 {[%clk 0:02:26.1]}
17. Be4 {[%clk 0:02:42.8]} 17... Qg5 {[%clk 0:02:25.2]} 18. Qf3 {[%clk
0:02:42.2]} 18... Qxd2 {[%clk 0:02:07.9]} 19. Rac1 {[%clk 0:02:40.4]} 19... Qg5
{[%clk 0:01:53.2]} 20. Rc7 {[%clk 0:02:08.6]} 20... Rd7 {[%clk 0:01:32.5]} 21.
Rxd7 {[%clk 0:02:02.1]} 21... Bxd7 {[%clk 0:01:33.4]} 22. Bxb7 {[%clk
0:02:02.6]} 22... Rd8 {[%clk 0:01:33]} 23. Bc6 {[%clk 0:01:54.3]} 23... Bc8
{[%clk 0:01:29.1]} 24. h3 {[%clk 0:01:38.7]} 24... d3 {[%clk 0:01:23.1]} 25. Rd1
{[%clk 0:01:39.1]} 25... d2 {[%clk 0:01:22.4]} 26. Bb4 {[%clk 0:01:36]} 26... h5
{[%clk 0:01:11.1]} 27. Qe3 {[%clk 0:01:22.4]} 27... Qxe3 {[%clk 0:01:09.9]} 28.
fxe3 {[%clk 0:01:23.3]} 28... Rd3 {[%clk 0:00:59.2]} 29. Rxd2 {[%clk 0:01:16]}
29... Rxb3 {[%clk 0:00:51.4]} 30. Bc5 {[%clk 0:01:16.1]} 30... a6 {[%clk
0:00:42.8]} 31. b6 {[%clk 0:01:13.6]} 31... Rc3 {[%clk 0:00:39.1]} 32. b7 {[%clk
0:00:54]} 32... Bxb7 {[%clk 0:00:37.8]} 33. Bxb7 {[%clk 0:00:54.7]} 33... Rxc5
{[%clk 0:00:37.5]} 34. Bxa6 {[%clk 0:00:55.2]} 34... Rc1+ {[%clk 0:00:34.9]} 35.
Kf2 {[%clk 0:00:54]} 35... Ra1 {[%clk 0:00:35.8]} 36. Bb5 {[%clk 0:00:54.1]}
36... Rb1 {[%clk 0:00:28.2]} 37. Rc2 {[%clk 0:00:53.7]} 37... Rb2 {[%clk
0:00:27.9]} 38. Rxb2 {[%clk 0:00:51.4]} 38... Bxb2 {[%clk 0:00:28.2]} 39. a5
{[%clk 0:00:52]} 39... Be5 {[%clk 0:00:27]} 40. a6 {[%clk 0:00:51.5]} 40... Bb8
{[%clk 0:00:27.5]} 41. Kf3 {[%clk 0:00:49.8]} 41... Ba7 {[%clk 0:00:28.4]} 42.
Be8 {[%clk 0:00:48.4]} 42... g6 {[%clk 0:00:28.5]} 43. Kf4 {[%clk 0:00:45.6]}
43... Kg7 {[%clk 0:00:29]} 44. Ke4 {[%clk 0:00:45.8]} 44... h4 {[%clk
0:00:21.7]} 45. Kf3 {[%clk 0:00:40.1]} 45... g5 {[%clk 0:00:19.3]} 46. e4 {[%clk
0:00:40.4]} 46... f6 {[%clk 0:00:19.6]} 47. Ke2 {[%clk 0:00:40.6]} 47... Kf8
{[%clk 0:00:18.8]} 48. Bc6 {[%clk 0:00:39.7]} 48... Ke7 {[%clk 0:00:19.3]} 49.
Kd3 {[%clk 0:00:40.2]} 49... Kd6 {[%clk 0:00:20.2]} 50. Bb5 {[%clk 0:00:35.4]}
50... Ke5 {[%clk 0:00:20.1]} 51. Bc6 {[%clk 0:00:34]} 51... Kf4 {[%clk
0:00:19.5]} 52. Ke2 {[%clk 0:00:29.1]} 52... f5 {[%clk 0:00:19.3]} 53. Kd3
{[%clk 0:00:24.7]} 53... Kg3 {[%clk 0:00:17.7]} 54. exf5 {[%clk 0:00:20]} 54...
exf5 {[%clk 0:00:18.6]} 55. Bd7 {[%clk 0:00:17.4]} 55... f4 {[%clk 0:00:10]} 56.
Bc6 {[%clk 0:00:15.3]} 56... g4 {[%clk 0:00:10.6]} 57. hxg4 {[%clk 0:00:08]}
57... Kxg4 {[%clk 0:00:11.5]} 58. Ke2 {[%clk 0:00:08.6]} 58... Kg3 {[%clk
0:00:11.9]} 59. Bd7 {[%clk 0:00:07.5]} 59... Bb6 {[%clk 0:00:10.4]} 60. Bf5
{[%clk 0:00:07.6]} 60... Ba7 {[%clk 0:00:11.3]} 61. Bh3 {[%clk 0:00:04.1]} 61...
Bb6 {[%clk 0:00:12.2]} 62. Bd7 {[%clk 0:00:03.3]} 62... Ba7 {[%clk 0:00:13.1]}
63. Bc6 {[%clk 0:00:03.5]} 63... Bb6 {[%clk 0:00:13.3]} 64. Be4 {[%clk
0:00:04.1]} 64... Ba7 {[%clk 0:00:13.8]} 65. Kd3 {[%clk 0:00:04.8]} 65... Bb6
{[%clk 0:00:14.7]} 66. Kc4 {[%clk 0:00:04.9]} 66... Ba7 {[%clk 0:00:15.6]} 67.
Kb5 {[%clk 0:00:05.4]} 67... h3 {[%clk 0:00:15.2]} 68. gxh3 {[%clk 0:00:06]}
68... Kxh3 {[%clk 0:00:16.1]} 69. Kc6 {[%clk 0:00:06.6]} 69... Kg3 {[%clk
0:00:15.4]} 70. Kb7 {[%clk 0:00:06.9]} 70... Be3 {[%clk 0:00:15.5]} 71. Kc6
{[%clk 0:00:06.5]} 71... f3 {[%clk 0:00:15.2]} 72. Kd5 {[%clk 0:00:06.7]} 72...
f2 {[%clk 0:00:15.4]} 73. Bd3 {[%clk 0:00:07.4]} 73... Ba7 {[%clk 0:00:15.6]}
74. Kc6 {[%clk 0:00:07.6]} 74... Kg2 {[%clk 0:00:15.8]} 75. Kb7 {[%clk
0:00:08.1]} 75... Be3 {[%clk 0:00:15.8]} 76. Kc6 {[%clk 0:00:08.8]} 76... f1=Q
{[%clk 0:00:15.6]} 77. Bxf1+ {[%clk 0:00:09.1]} 77... Kxf1 {[%clk 0:00:16.1]}
78. Kc7 {[%clk 0:00:09.6]} 78... Ke2 {[%clk 0:00:15.4]} 79. Kb7 {[%clk
0:00:10.3]} 79... Kd3 {[%clk 0:00:15.6]} 80. Kc6 {[%clk 0:00:11.2]} 80... Kc4
{[%clk 0:00:15.5]} 81. Kc7 {[%clk 0:00:11.9]} 81... Kb5 {[%clk 0:00:15]} 82. a7
{[%clk 0:00:12.5]} 82... Bxa7 {[%clk 0:00:15.2]} 1/2-1/2

[Event "Late-Titled-Tuesday-Blitz-December-26-2023"]
[Site "Chess.com"]
[Date "2023.12.26"]
[Round "1"]
[White "AsaHoffmann"]
[Black "carokannlover213"]
[Result "0-1"]
[WhiteElo "2366"]
[BlackElo "2675"]
[TimeControl "180+1"]
[EndTime "14:08:54 PST"]
[Termination "carokannlover213 won by resignation"]

1. d4 {[%clk 0:02:53.8]} 1... g6 {[%clk 0:02:59.6]} 2. e4 {[%clk 0:02:51.2]}
2... Bg7 {[%clk 0:03:00.2]} 3. Be3 {[%clk 0:02:50.6]} 3... c6 {[%clk 0:03:00.4]}
4. Qd2 {[%clk 0:02:49]} 4... d5 {[%clk 0:03:00.3]} 5. Nc3 {[%clk 0:02:48.9]}
5... dxe4 {[%clk 0:02:58.3]} 6. Nxe4 {[%clk 0:02:48.6]} 6... Nf6 {[%clk
0:02:58.8]} 7. Nxf6+ {[%clk 0:02:46.9]} 7... exf6 {[%clk 0:02:59.2]} 8. O-O-O
{[%clk 0:02:44.8]} 8... O-O {[%clk 0:02:58.6]} 9. Bh6 {[%clk 0:02:43.1]} 9...
Be6 {[%clk 0:02:58.4]} 10. Kb1 {[%clk 0:02:42.4]} 10... a5 {[%clk 0:02:50.5]}
11. h4 {[%clk 0:02:40.8]} 11... Qd5 {[%clk 0:02:39.9]} 12. b3 {[%clk 0:02:37.1]}
12... a4 {[%clk 0:02:20.4]} 13. Bc4 {[%clk 0:02:33.5]} 13... Qxg2 {[%clk
0:02:07.2]} 14. Bxg7 {[%clk 0:02:16.6]} 14... Kxg7 {[%clk 0:02:04.3]} 15. Ne2
{[%clk 0:02:03.3]} 15... axb3 {[%clk 0:01:59.8]} 16. Bxb3 {[%clk 0:02:01.7]}
16... Bxb3 {[%clk 0:01:59]} 17. axb3 {[%clk 0:01:59.5]} 17... Qd5 {[%clk
0:01:55.5]} 18. Kb2 {[%clk 0:01:38.5]} 18... Nd7 {[%clk 0:01:30]} 19. h5 {[%clk
0:01:37.8]} 19... Qa5 {[%clk 0:01:25.2]} 20. Qxa5 {[%clk 0:01:35.1]} 20... Rxa5
{[%clk 0:01:24.6]} 21. h6+ {[%clk 0:01:33.8]} 21... Kg8 {[%clk 0:01:23.9]} 22.
Nc3 {[%clk 0:01:33.5]} 22... Re8 {[%clk 0:01:19.1]} 23. Rde1 {[%clk 0:01:32.6]}
23... Kf8 {[%clk 0:01:17.5]} 24. Ne4 {[%clk 0:01:31.4]} 24... Re6 {[%clk
0:01:10]} 25. b4 {[%clk 0:01:26.1]} 25... Rf5 {[%clk 0:01:04.1]} 26. Nc5 {[%clk
0:01:20.3]} 26... Nxc5 {[%clk 0:01:03.4]} 27. bxc5 {[%clk 0:01:19.8]} 27... Ke7
{[%clk 0:00:38.9]} 28. Ra1 {[%clk 0:01:13.9]} 28... Kd7 {[%clk 0:00:25.7]} 29.
Ra8 {[%clk 0:01:11.1]} 29... Re8 {[%clk 0:00:25.5]} 30. Ra7 {[%clk 0:01:04.2]}
30... Kc7 {[%clk 0:00:25]} 31. Rh3 {[%clk 0:00:57]} 31... Kb8 {[%clk 0:00:10.7]}
32. Raa3 {[%clk 0:00:54.6]} 32... Rxf2 {[%clk 0:00:09.5]} 33. Rhe3 {[%clk
0:00:54.2]} 33... Rxe3 {[%clk 0:00:08.1]} 34. Rxe3 {[%clk 0:00:53.7]} 34... Rh2
{[%clk 0:00:08.7]} 35. Re7 {[%clk 0:00:52.3]} 35... Rxh6 {[%clk 0:00:07.8]} 36.
Rxf7 {[%clk 0:00:52.2]} 36... f5 {[%clk 0:00:08.4]} 37. c4 {[%clk 0:00:51.3]}
37... Rh3 {[%clk 0:00:08]} 38. d5 {[%clk 0:00:51]} 38... Rd3 {[%clk 0:00:05.7]}
39. Kc2 {[%clk 0:00:48.3]} 39... Rd4 {[%clk 0:00:05]} 40. Kc3 {[%clk 0:00:47.8]}
40... Rd1 {[%clk 0:00:05.6]} 41. Kc2 {[%clk 0:00:42.9]} 41... Re1 {[%clk
0:00:06]} 42. d6 {[%clk 0:00:40.4]} 42... Re8 {[%clk 0:00:04.5]} 43. Rxh7 {[%clk
0:00:39.2]} 43... Rg8 {[%clk 0:00:04.9]} 44. Kd3 {[%clk 0:00:38.4]} 44... g5
{[%clk 0:00:04.7]} 45. Ke3 {[%clk 0:00:38.5]} 45... g4 {[%clk 0:00:05.2]} 46.
Kf2 {[%clk 0:00:38.1]} 46... g3+ {[%clk 0:00:05.5]} 47. Kg2 {[%clk 0:00:38]}
47... Kc8 {[%clk 0:00:04.5]} 48. Rf7 {[%clk 0:00:37.7]} 48... Rg4 {[%clk
0:00:02.4]} 49. Rxf5 {[%clk 0:00:35.4]} 49... Rxc4 {[%clk 0:00:03]} 50. Rf8+
{[%clk 0:00:34.1]} 50... Kd7 {[%clk 0:00:03.6]} 51. Rf7+ {[%clk 0:00:34.2]}
51... Ke6 {[%clk 0:00:04]} 52. Re7+ {[%clk 0:00:34.2]} 52... Kf6 {[%clk
0:00:03.7]} 53. Rxb7 {[%clk 0:00:33.2]} 53... Rxc5 {[%clk 0:00:04.2]} 54. d7
{[%clk 0:00:33.2]} 54... Ke7 {[%clk 0:00:04.6]} 55. Kxg3 {[%clk 0:00:32.8]}
55... Rf5 {[%clk 0:00:03.3]} 56. Kg4 {[%clk 0:00:32.8]} 56... Rf8 {[%clk
0:00:03.4]} 57. Kg5 {[%clk 0:00:31.7]} 57... Kd6 {[%clk 0:00:02.5]} 58. Kg6
{[%clk 0:00:29.7]} 58... c5 {[%clk 0:00:03]} 59. Kg7 {[%clk 0:00:28.5]} 59...
Rd8 {[%clk 0:00:03.6]} 60. Rb6+ {[%clk 0:00:27.8]} 60... Kd5 {[%clk 0:00:02.4]}
61. Rb7 {[%clk 0:00:27.1]} 61... Kc6 {[%clk 0:00:02.7]} 62. Rb1 {[%clk
0:00:26.1]} 62... Rxd7+ {[%clk 0:00:02.2]} 63. Kf6 {[%clk 0:00:26.1]} 63... Rd5
{[%clk 0:00:01.4]} 64. Ke6 {[%clk 0:00:25.9]} 64... Rh5 {[%clk 0:00:02.1]} 65.
Rb8 {[%clk 0:00:24.6]} 65... c4 {[%clk 0:00:02.1]} 66. Rc8+ {[%clk 0:00:24.1]}
66... Kb5 {[%clk 0:00:02.6]} 67. Rb8+ {[%clk 0:00:23]} 67... Kc5 {[%clk
0:00:03.2]} 68. Rc8+ {[%clk 0:00:23.1]} 68... Kd4 {[%clk 0:00:03.8]} 69. Kf6
{[%clk 0:00:23]} 69... Rd5 {[%clk 0:00:03.3]} 70. Ke6 {[%clk 0:00:22.7]} 70...
Re5+ {[%clk 0:00:03.7]} 71. Kd6 {[%clk 0:00:22.6]} 71... Re4 {[%clk 0:00:04.1]}
72. Rc6 {[%clk 0:00:21.8]} 72... Kd3 {[%clk 0:00:04.4]} 73. Kd5 {[%clk
0:00:21.5]} 73... Rd4+ {[%clk 0:00:04.5]} 74. Ke5 {[%clk 0:00:21.4]} 74... c3
{[%clk 0:00:04.5]} 75. Rc5 {[%clk 0:00:20.9]} 75... Re4+ {[%clk 0:00:03.6]} 76.
Kd5 {[%clk 0:00:20.8]} 76... Rh4 {[%clk 0:00:04]} 77. Rc8 {[%clk 0:00:20.1]}
77... c2 {[%clk 0:00:04.2]} 78. Rc7 {[%clk 0:00:19.8]} 78... Kd2 {[%clk
0:00:04.2]} 79. Rc4 {[%clk 0:00:18.7]} 79... Rh5+ {[%clk 0:00:03.3]} 80. Ke6
{[%clk 0:00:18]} 80... c1=Q {[%clk 0:00:04.2]} 81. Rd4+ {[%clk 0:00:17.6]} 81...
Kc2 {[%clk 0:00:04]} 82. Rc4+ {[%clk 0:00:17.7]} 82... Kb1 {[%clk 0:00:04.6]}
83. Rxc1+ {[%clk 0:00:16.9]} 83... Kxc1 {[%clk 0:00:04.9]} 0-1

[Event "Late-Titled-Tuesday-Blitz-December-26-2023"]
[Site "Chess.com"]
[Date "2023.12.26"]
[Round "1"]
[White "bazar-wokzal"]
[Black "Veleamater"]
[Result "1-0"]
[WhiteElo "2661"]
[BlackElo "2352"]
[TimeControl "180+1"]
[EndTime "14:08:57 PST"]
[Termination "bazar-wokzal won by resignation"]

1. e4 {[%clk 0:02:31.8]} 1... d6 {[%clk 0:03:00.9]} 2. f4 {[%clk 0:02:31.4]}
2... g6 {[%clk 0:02:56.3]} 3. Nc3 {[%clk 0:02:30.4]} 3... Bg7 {[%clk 0:02:56.3]}
4. Nf3 {[%clk 0:02:30.8]} 4... Nf6 {[%clk 0:02:55.8]} 5. e5 {[%clk 0:02:30.7]}
5... Nfd7 {[%clk 0:02:55.2]} 6. d4 {[%clk 0:02:28.8]} 6... Nb6 {[%clk
0:02:54.6]} 7. Bd3 {[%clk 0:02:21.1]} 7... O-O {[%clk 0:02:49.4]} 8. h4 {[%clk
0:02:14.5]} 8... c5 {[%clk 0:02:48]} 9. dxc5 {[%clk 0:02:08.6]} 9... dxc5 {[%clk
0:02:46.8]} 10. h5 {[%clk 0:02:09.1]} 10... Bg4 {[%clk 0:02:46.6]} 11. hxg6
{[%clk 0:02:08.4]} 11... fxg6 {[%clk 0:02:46.8]} 12. Rxh7 {[%clk 0:01:52.2]}
12... c4 {[%clk 0:02:34.6]} 13. Bxg6 {[%clk 0:01:50]} 13... Qxd1+ {[%clk
0:02:33.4]} 14. Nxd1 {[%clk 0:01:48.2]} 14... Nc6 {[%clk 0:02:24]} 15. Nf2
{[%clk 0:00:54]} 15... Bf5 {[%clk 0:02:15.4]} 16. Bxf5 {[%clk 0:00:51.9]} 16...
Rxf5 {[%clk 0:02:15.1]} 17. Rh4 {[%clk 0:00:51.7]} 17... Raf8 {[%clk 0:02:06.8]}
18. Bd2 {[%clk 0:00:41]} 18... Nd5 {[%clk 0:01:57.3]} 19. g3 {[%clk 0:00:41]}
19... b5 {[%clk 0:01:54.1]} 20. O-O-O {[%clk 0:00:39.2]} 20... b4 {[%clk
0:01:50.9]} 21. Rdh1 {[%clk 0:00:31.3]} 21... c3 {[%clk 0:01:38.7]} 22. Be1
{[%clk 0:00:30.9]} 22... cxb2+ {[%clk 0:01:32.6]} 23. Kxb2 {[%clk 0:00:29.7]}
23... Nxe5 {[%clk 0:01:26.2]} 24. Nxe5 {[%clk 0:00:28.8]} 24... Bxe5+ {[%clk
0:00:57.9]} 25. fxe5 {[%clk 0:00:28.7]} 25... Rxe5 {[%clk 0:00:57.6]} 26. Rg4+
{[%clk 0:00:26.9]} 26... Kf7 {[%clk 0:00:57.2]} 27. Nd3 {[%clk 0:00:26.5]} 27...
Re2 {[%clk 0:00:55.9]} 28. Rf1+ {[%clk 0:00:24.6]} 28... Ke8 {[%clk 0:00:55.6]}
29. Rxf8+ {[%clk 0:00:24.3]} 29... Kxf8 {[%clk 0:00:55.7]} 30. Bxb4 {[%clk
0:00:22.3]} 30... Ne3 {[%clk 0:00:53.9]} 31. Rf4+ {[%clk 0:00:21.3]} 31... Kg7
{[%clk 0:00:50.5]} 32. Kb3 {[%clk 0:00:18.1]} 32... Nxc2 {[%clk 0:00:49.4]} 33.
Nc1 {[%clk 0:00:14.8]} 33... Na1+ {[%clk 0:00:48.5]} 34. Ka4 {[%clk 0:00:11.7]}
34... Rc2 {[%clk 0:00:47.8]} 35. Nd3 {[%clk 0:00:09]} 35... Rxa2+ {[%clk
0:00:47.4]} 36. Kb5 {[%clk 0:00:09.4]} 36... a6+ {[%clk 0:00:45.4]} 37. Kb6
{[%clk 0:00:09.2]} 37... e6 {[%clk 0:00:43.3]} 38. Bc3+ {[%clk 0:00:09.2]} 38...
Kg6 {[%clk 0:00:41.5]} 39. Rf6+ {[%clk 0:00:09.1]} 39... Kh5 {[%clk 0:00:41.4]}
40. Nf4+ {[%clk 0:00:07.6]} 40... Kg4 {[%clk 0:00:41.7]} 41. Rg6+ {[%clk
0:00:07.9]} 41... Kf3 {[%clk 0:00:41.6]} 42. Nxe6 {[%clk 0:00:07.6]} 42... Nc2
{[%clk 0:00:36.7]} 43. Nd4+ {[%clk 0:00:07.9]} 43... Nxd4 {[%clk 0:00:35.8]} 44.
Bxd4 {[%clk 0:00:08.8]} 44... a5 {[%clk 0:00:35.7]} 45. Kb5 {[%clk 0:00:08.4]}
45... a4 {[%clk 0:00:36]} 46. Kb4 {[%clk 0:00:08.4]} 46... a3 {[%clk 0:00:35.3]}
47. Kb3 {[%clk 0:00:08.3]} 47... Rd2 {[%clk 0:00:35.1]} 48. Be5 {[%clk
0:00:08.4]} 48... Rd3+ {[%clk 0:00:34.9]} 49. Ka2 {[%clk 0:00:08.8]} 49... Ke4
{[%clk 0:00:34.8]} 50. Bf4 {[%clk 0:00:08.9]} 50... Kf5 {[%clk 0:00:34.2]} 51.
Rb6 {[%clk 0:00:08.6]} 51... Kg4 {[%clk 0:00:32.8]} 52. Rb3 {[%clk 0:00:08.6]}
52... Rd5 {[%clk 0:00:32.6]} 53. Kxa3 {[%clk 0:00:08.9]} 53... Ra5+ {[%clk
0:00:28.3]} 54. Kb4 {[%clk 0:00:09]} 54... Ra8 {[%clk 0:00:28.1]} 55. Re3 {[%clk
0:00:09.5]} 55... Kf5 {[%clk 0:00:27.9]} 56. Kc4 {[%clk 0:00:09.7]} 56... Kf6
{[%clk 0:00:28.4]} 57. Kd5 {[%clk 0:00:09.9]} 57... Ra4 {[%clk 0:00:29]} 58. Rb3
{[%clk 0:00:09.1]} 58... Ra5+ {[%clk 0:00:29]} 59. Ke4 {[%clk 0:00:09.1]} 59...
Ra4+ {[%clk 0:00:29.6]} 60. Kf3 {[%clk 0:00:09.5]} 60... Kf5 {[%clk 0:00:30.1]}
61. Rb5+ {[%clk 0:00:09.8]} 61... Ke6 {[%clk 0:00:30.5]} 62. g4 {[%clk
0:00:10.4]} 62... Ra1 {[%clk 0:00:30.2]} 63. Be3 {[%clk 0:00:10.4]} 63... Rf1+
{[%clk 0:00:30]} 64. Ke4 {[%clk 0:00:10.7]} 64... Kf6 {[%clk 0:00:28.3]} 65.
Rb6+ {[%clk 0:00:10.2]} 65... Kf7 {[%clk 0:00:28.1]} 66. g5 {[%clk 0:00:10.7]}
66... Kg7 {[%clk 0:00:26.1]} 67. Bf4 {[%clk 0:00:11]} 67... Rg1 {[%clk
0:00:25.7]} 68. Kf5 {[%clk 0:00:11.1]} 68... Rd1 {[%clk 0:00:26]} 69. Rb7+
{[%clk 0:00:11.5]} 69... Kf8 {[%clk 0:00:26]} 70. g6 {[%clk 0:00:12.1]} 70...
Rd5+ {[%clk 0:00:24.9]} 71. Kf6 {[%clk 0:00:11.5]} 71... Rd8 {[%clk 0:00:24.4]}
72. Bh6+ {[%clk 0:00:11.5]} 72... Kg8 {[%clk 0:00:23.2]} 73. Bf4 {[%clk
0:00:10.7]} 73... Rf8+ {[%clk 0:00:21.5]} 74. Kg5 {[%clk 0:00:11]} 74... Re8
{[%clk 0:00:21.1]} 75. Rf7 {[%clk 0:00:10]} 75... Re4 {[%clk 0:00:20.5]} 76. Rd7
{[%clk 0:00:08.8]} 76... Re8 {[%clk 0:00:20]} 77. Bd2 {[%clk 0:00:08.5]} 77...
Re5+ {[%clk 0:00:19.1]} 78. Kf6 {[%clk 0:00:08.8]} 78... Re8 {[%clk 0:00:19.4]}
79. Bb4 {[%clk 0:00:09]} 79... Rb8 {[%clk 0:00:18.4]} 80. Bd6 {[%clk 0:00:08.6]}
80... Re8 {[%clk 0:00:17.9]} 81. Be7 {[%clk 0:00:08.8]} 81... Rc8 {[%clk
0:00:17.5]} 82. Rd8+ {[%clk 0:00:09.1]} 82... Rxd8 {[%clk 0:00:16.8]} 83. Bxd8
{[%clk 0:00:10]} 1-0